fUST/lending_fUST_20240119
["ID","MTS","AMOUNT","RATE_DAILY","PERIOD"]
[312116363,1705642255004,-150.0,0.00034,4]
[312116364,1705642255015,-152.96638602,0.0003404,7]
[312116365,1705642255024,-150.0,0.000341,6]
[312116366,1705642255033,-2000.0,0.000342,14]
[312116367,1705642255043,-1500.0,0.000342,2]
[312116368,1705642255051,-2000.0,0.0003421,14]
[312116369,1705642255060,-2000.0,0.0003422,14]
[312116370,1705642255069,-2000.0,0.0003423,14]
[312116371,1705642255078,-2000.0,0.0003424,15]
[312116372,1705642255088,-2088.71588189,0.00034246,4]
[312116373,1705642255097,-470.32965818,0.00034246,2]
[312116374,1705642255106,-4593.35139759,0.00034246,4]
[312116375,1705642255116,-511.22320999,0.00034246,3]
[312116376,1705642255125,-440.96,0.00034246,3]
[312116377,1705642255134,-500.0,0.00034246,3]
[312116378,1705642255143,-500.0,0.00034246,3]
[312116379,1705642255152,-501.15009695,0.00034246,3]
[312116380,1705642255161,-500.0,0.00034246,3]
[312116381,1705642255170,-502.6959281,0.00034246,3]
[312116382,1705642255179,-502.4340676,0.00034246,3]
[312116383,1705642255188,-500.0,0.00034246,3]
[312116384,1705642255197,-500.0,0.00034246,3]
[312116385,1705642255207,-500.0,0.00034246,3]
[312116386,1705642255216,-500.0,0.00034246,3]
[312116387,1705642255225,-500.0,0.00034246,3]
[312116388,1705642255234,-250.0,0.00034246,7]
[312116389,1705642255243,-500.0,0.00034246,3]
[312116390,1705642255252,-485.51076799,0.00034246,3]
[312116391,1705642255261,-627.68,0.00034246,3]
[312116392,1705642255270,-500.0,0.00034246,3]
[312116393,1705642255279,-1288.13,0.00034246,3]
[312116394,1705642255288,-968.28,0.00034246,3]
[312116395,1705642255297,-712.94,0.00034246,3]
[312116396,1705642255307,-500.0,0.00034246,3]
[312116397,1705642255316,-882.02,0.00034246,3]
[312116398,1705642255325,-500.0,0.00034246,3]
[312116399,1705642255334,-1012.5,0.00034246,3]
[312116400,1705642255344,-912.0,0.00034246,3]
[312116401,1705642255353,-1028.62,0.00034246,3]
[312116402,1705642255363,-8065.62,0.00034246,3]
[312116403,1705642255372,-500.0,0.00034246,3]
[312116404,1705642255381,-810.73,0.00034246,3]
[312116405,1705642255390,-1980.19,0.00034246,3]
[312116406,1705642255400,-5460.48,0.00034246,3]
[312116407,1705642255409,-500.0,0.00034246,3]
[312116408,1705642255418,-500.0,0.00034246,3]
[312116409,1705642255428,-1729.78,0.00034246,3]
[312116410,1705642255441,-500.0,0.00034246,3]
[312116411,1705642255450,-703.4,0.00034246,3]
[312116412,1705642255459,-502.48,0.00034246,3]
[312116413,1705642255468,-458.02,0.00034246,3]
[312116414,1705642255478,-2573.61,0.00034246,3]
[312116415,1705642255486,-500.0,0.00034246,3]
[312116416,1705642255496,-2346.2,0.00034246,3]
[312116417,1705642255505,-500.0,0.00034246,3]
[312116418,1705642255515,-500.0,0.00034246,3]
[312116419,1705642255525,-500.0,0.00034246,3]
[312116420,1705642255535,-500.0,0.00034246,3]
[312116421,1705642255544,-500.0,0.00034246,3]
[312116422,1705642255553,-2506.63,0.00034246,3]
[312116423,1705642255562,-763.21,0.00034246,3]
[312116424,1705642255571,-500.0,0.00034246,3]
[312116425,1705642255580,-377.785524,0.00034247,2]
[312116426,1705642255589,-2000.0,0.0003425,15]
[312116427,1705642255598,-2000.0,0.0003426,15]
[312116428,1705642255608,-2000.0,0.0003427,15]
[312116429,1705642255617,-2000.0,0.0003428,15]
[312116430,1705642255627,-2000.0,0.0003429,15]
[312116431,1705642255636,-2000.0,0.000343,15]
[312116432,1705642255645,-151.0,0.00034304,2]
[312116433,1705642255654,-3041.210537,0.0003431,15]
[312116434,1705642255664,-150.5,0.00034488,30]
[312116435,1705642255673,-150.5,0.00034498,30]
[312116436,1705642255682,-150.5,0.00034508,30]
[312116437,1705642255691,-2947.15678661,0.00034518,4]
[312116438,1705642255700,-500.0,0.0003452,3]
[312116439,1705642255710,-500.0,0.0003452,3]
[312116440,1705642255720,-151.0,0.0003452,2]
[312116441,1705642255729,-500.0,0.0003452,3]
[312116442,1705642255738,-500.0,0.0003452,3]
[312116443,1705642255747,-608.0683978,0.0003452,3]
[312116444,1705642255757,-151.0,0.0003452,2]
[312116445,1705642255766,-150.011931,0.0003452,3]
[312116446,1705642255775,-390.50952533,0.0003452,3]
[312116447,1705642255785,-500.0,0.0003452,3]
[312116448,1705642255794,-395.206782,0.0003452,2]
[312116449,1705642255803,-395.206782,0.0003452,2]
[312116450,1705642255812,-627.68,0.0003452,3]
[312116451,1705642255822,-500.0,0.0003452,3]
[312116452,1705642255831,-1288.13,0.0003452,3]
[312116453,1705642255840,-968.28,0.0003452,3]
[312116454,1705642255849,-712.94,0.0003452,3]
[312116455,1705642255858,-500.0,0.0003452,3]
[312116456,1705642255868,-882.02,0.0003452,3]
[312116457,1705642255877,-500.0,0.0003452,3]
[312116458,1705642255887,-1012.5,0.0003452,3]
[312116459,1705642255896,-912.0,0.0003452,3]
[312116460,1705642255906,-1028.62,0.0003452,3]
[312116461,1705642255915,-8065.62,0.0003452,3]
[312116462,1705642255924,-810.73,0.0003452,3]
[312116463,1705642255934,-1980.19,0.0003452,3]
[312116464,1705642255943,-5460.48,0.0003452,3]
[312116465,1705642255952,-500.0,0.0003452,3]
[312116466,1705642255961,-500.0,0.0003452,3]
[312116467,1705642255971,-1729.78,0.0003452,3]
[312116468,1705642256038,-500.0,0.0003452,3]
[312116469,1705642256048,-703.4,0.0003452,3]
[312116470,1705642256058,-502.48,0.0003452,3]
[312116471,1705642256067,-2573.61,0.0003452,3]
[312116472,1705642256077,-500.0,0.0003452,3]
[312116473,1705642256086,-2346.2,0.0003452,3]
[312116474,1705642256096,-500.0,0.0003452,3]
[312116475,1705642256105,-500.0,0.0003452,3]
[312116476,1705642256114,-500.0,0.0003452,3]
[312116477,1705642256123,-500.0,0.0003452,3]
[312116478,1705642256132,-2506.63,0.0003452,3]
[312116479,1705642256141,-763.21,0.0003452,3]
[312116480,1705642256150,-500.0,0.0003452,3]
[312116481,1705642256160,-170.0,0.00034521,2]
[312116482,1705642256169,-151.32984646,0.00034528,2]
[312116483,1705642256178,-245.045733,0.000346,8]
[312116484,1705642256188,-9241.58429787,0.00034661,4]
[312116485,1705642256197,-1383.0,0.0003467,30]
[312116486,1705642256207,-157.98,0.00034672,2]
[312116487,1705642256216,-1383.0,0.0003468,30]
[312116488,1705642256225,-1383.0,0.0003469,30]
[312116489,1705642256234,-152.96638602,0.00034714,7]
[312116490,1705642256244,-5019.82195002,0.00034742,4]
[312116491,1705642256254,-5000.0,0.00034742,7]
[312116492,1705642256263,-4004.28917832,0.00034742,4]
[312116493,1705642256273,-500.0,0.00034794,3]
[312116494,1705642256282,-500.0,0.00034794,3]
[312116495,1705642256291,-500.0,0.00034794,3]
[312116496,1705642256301,-627.68,0.00034794,3]
[312116497,1705642256310,-500.0,0.00034794,3]
[312116498,1705642256320,-1288.13,0.00034794,3]
[312116499,1705642256330,-968.28,0.00034794,3]
[312116500,1705642256339,-712.94,0.00034794,3]
[312116501,1705642256348,-500.0,0.00034794,3]
[312116502,1705642256358,-882.02,0.00034794,3]
[312116503,1705642256367,-611.02220201,0.00034794,3]
[312116504,1705642256377,-1012.5,0.00034794,3]
[312116505,1705642256386,-912.0,0.00034794,3]
[312116506,1705642256397,-1028.62,0.00034794,3]
[312116507,1705642256406,-8065.62,0.00034794,3]
[312116508,1705642256415,-810.73,0.00034794,3]
[312116509,1705642256424,-1980.19,0.00034794,3]
[312116510,1705642256434,-5460.48,0.00034794,3]
[312116511,1705642256448,-500.0,0.00034794,3]
[312116512,1705642256457,-500.0,0.00034794,3]
[312116513,1705642256467,-1729.78,0.00034794,3]
[312116514,1705642256476,-500.0,0.00034794,3]
[312116515,1705642256486,-703.4,0.00034794,3]
[312116516,1705642256495,-502.48,0.00034794,3]
[312116517,1705642256505,-2573.61,0.00034794,3]
[312116518,1705642256515,-500.0,0.00034794,3]
[312116519,1705642256526,-2346.2,0.00034794,3]
[312116520,1705642256536,-500.0,0.00034794,3]
[312116521,1705642256545,-500.0,0.00034794,3]
[312116522,1705642256554,-500.0,0.00034794,3]
[312116523,1705642256564,-500.0,0.00034794,3]
[312116524,1705642256574,-2506.63,0.00034794,3]
[312116525,1705642256584,-763.21,0.00034794,3]
[312116526,1705642256593,-500.0,0.00034794,3]
[312116527,1705642256602,-958.05408189,0.000348,2]
[312116528,1705642256611,-50000.0,0.00034811,4]
[312116529,1705642256620,-5000.0,0.00034944,7]
[312116530,1705642256629,-5000.0,0.00034944,7]
[312116531,1705642256638,-5000.0,0.00034963,7]
[312116532,1705642256647,-5000.0,0.00034963,7]
[312116533,1705642256656,-9300.82143801,0.00034963,4]
[312116534,1705642256665,-5000.0,0.00034963,7]
[312116535,1705642256674,-5000.0,0.00034963,7]
[312116536,1705642256683,-9251.51548522,0.00034963,4]
[312116537,1705642256692,-151.0,0.00034963,2]
[312116538,1705642256701,-16341.75022683,0.00034986,4]
[312116539,1705642256710,-395.206782,0.00034986,2]
[312116540,1705642256720,-395.206782,0.00034986,2]
[312116541,1705642256730,-281.34131699,0.00034993,2]
[312116542,1705642256738,-9411.15644905,0.00034993,4]
[312116543,1705642256747,-19060.79918765,0.00035,3]
[312116544,1705642256756,-11158.91946061,0.00035,4]
[312116545,1705642256766,-154.8915759,0.00035,4]
[312116546,1705642256775,-591.76162003,0.00035,2]
[312116547,1705642256784,-3119.50448181,0.00035,18]
[312116548,1705642256794,-2084.57822944,0.00035,4]
[312116549,1705642256803,-300.0,0.00035,2]
[312116550,1705642256812,-3592.36268445,0.00035,2]
[312116551,1705642256823,-19916.85926334,0.00035,2]
[312116552,1705642256832,-653.4821179,0.00035,4]
[312116553,1705642256841,-802.547157,0.00035,3]
[312116554,1705642256850,-500.0,0.00035068,3]
[312116555,1705642256859,-500.0,0.00035068,3]
[312116556,1705642256869,-500.0,0.00035068,3]
[312116557,1705642256878,-627.68,0.00035068,3]
[312116558,1705642256888,-500.0,0.00035068,3]
[312116559,1705642256897,-1288.13,0.00035068,3]
[312116560,1705642256906,-968.28,0.00035068,3]
[312116561,1705642256916,-712.94,0.00035068,3]
[312116562,1705642256925,-500.0,0.00035068,3]
[312116563,1705642256934,-882.02,0.00035068,3]
[312116564,1705642256944,-1012.5,0.00035068,3]
[312116565,1705642256953,-912.0,0.00035068,3]
[312116566,1705642256962,-1028.62,0.00035068,3]
[312116567,1705642256971,-8065.62,0.00035068,3]
[312116568,1705642256980,-810.73,0.00035068,3]
[312116569,1705642256989,-1980.19,0.00035068,3]
[312116570,1705642256998,-5460.48,0.00035068,3]
[312116571,1705642257007,-500.0,0.00035068,3]
[312116572,1705642257017,-500.0,0.00035068,3]
[312116573,1705642257026,-1729.78,0.00035068,3]
[312116574,1705642257036,-500.0,0.00035068,3]
[312116575,1705642257046,-703.4,0.00035068,3]
[312116576,1705642257055,-502.48,0.00035068,3]
[312116577,1705642257064,-2573.61,0.00035068,3]
[312116578,1705642257073,-500.0,0.00035068,3]
[312116579,1705642257083,-2346.2,0.00035068,3]
[312116580,1705642257093,-500.0,0.00035068,3]
[312116581,1705642257102,-500.0,0.00035068,3]
[312116582,1705642257112,-500.0,0.00035068,3]
[312116583,1705642257122,-500.0,0.00035068,3]
[312116584,1705642257131,-2506.63,0.00035068,3]
[312116585,1705642257195,-763.21,0.00035068,3]
[312116586,1705642257205,-500.0,0.00035068,3]
[312116587,1705642257214,-377.785524,0.00035068,2]
[312116588,1705642257223,-5000.0,0.00035071,7]
[312116589,1705642257232,-5000.0,0.00035071,7]
[312116590,1705642257241,-151.0,0.00035096,2]
[312116591,1705642257250,-5000.0,0.00035096,7]
[312116592,1705642257259,-1500.0,0.000352,2]
[312116593,1705642257269,-154.11481155,0.00035226,7]
[312116594,1705642257279,-163.0,0.00035282,2]
[312116595,1705642257288,-202.97,0.00035282,2]
[312116596,1705642257297,-395.206782,0.00035342,2]
[312116597,1705642257306,-395.206782,0.00035342,2]
[312116598,1705642257316,-438.34,0.00035342,3]
[312116599,1705642257326,-500.0,0.00035342,3]
[312116600,1705642257335,-500.0,0.00035342,3]
[312116601,1705642257344,-627.68,0.00035342,3]
[312116602,1705642257353,-500.0,0.00035342,3]
[312116603,1705642257362,-1288.13,0.00035342,3]
[312116604,1705642257372,-968.28,0.00035342,3]
[312116605,1705642257381,-712.94,0.00035342,3]
[312116606,1705642257390,-500.0,0.00035342,3]
[312116607,1705642257400,-882.02,0.00035342,3]
[312116608,1705642257410,-1012.5,0.00035342,3]
[312116609,1705642257420,-912.0,0.00035342,3]
[312116610,1705642257429,-1028.62,0.00035342,3]
[312116611,1705642257441,-8065.62,0.00035342,3]
[312116612,1705642257450,-810.73,0.00035342,3]
[312116613,1705642257459,-1980.19,0.00035342,3]
[312116614,1705642257470,-5460.48,0.00035342,3]
[312116615,1705642257479,-500.0,0.00035342,3]
[312116616,1705642257489,-500.0,0.00035342,3]
[312116617,1705642257499,-1729.78,0.00035342,3]
[312116618,1705642257509,-500.0,0.00035342,3]
[312116619,1705642257520,-703.4,0.00035342,3]
[312116620,1705642257530,-502.48,0.00035342,3]
[312116621,1705642257539,-2573.61,0.00035342,3]
[312116622,1705642257548,-500.0,0.00035342,3]
[312116623,1705642257558,-2346.2,0.00035342,3]
[312116624,1705642257568,-500.0,0.00035342,3]
[312116625,1705642257578,-500.0,0.00035342,3]
[312116626,1705642257588,-500.0,0.00035342,3]
[312116627,1705642257598,-500.0,0.00035342,3]
[312116628,1705642257607,-2506.63,0.00035342,3]
[312116629,1705642257617,-763.21,0.00035342,3]
[312116630,1705642257626,-500.0,0.00035342,3]
[312116631,1705642257636,-152.96638602,0.00035365,7]
[312116632,1705642257645,-1273.60431467,0.00035605,2]
[312116633,1705642257654,-155.29191634,0.00035616,4]
[312116634,1705642257663,-776.53057399,0.00035616,4]
[312116635,1705642257673,-500.0,0.00035616,3]
[312116636,1705642257683,-500.0,0.00035616,3]
[312116637,1705642257692,-627.68,0.00035616,3]
[312116638,1705642257702,-500.0,0.00035616,3]
[312116639,1705642257711,-1288.13,0.00035616,3]
[312116640,1705642257721,-968.28,0.00035616,3]
[312116641,1705642257730,-712.94,0.00035616,3]
[312116642,1705642257739,-500.0,0.00035616,3]
[312116643,1705642257748,-882.02,0.00035616,3]
[312116644,1705642257757,-912.0,0.00035616,3]
[312116645,1705642257766,-1012.5,0.00035616,3]
[312116646,1705642257775,-1028.62,0.00035616,3]
[312116647,1705642257785,-8065.62,0.00035616,3]
[312116648,1705642257794,-810.73,0.00035616,3]
[312116649,1705642257803,-1980.19,0.00035616,3]
[312116650,1705642257813,-5460.48,0.00035616,3]
[312116651,1705642257823,-500.0,0.00035616,3]
[312116652,1705642257832,-156.20025426,0.00035616,3]
[312116653,1705642257841,-1729.78,0.00035616,3]
[312116654,1705642257851,-500.0,0.00035616,3]
[312116655,1705642257860,-703.4,0.00035616,3]
[312116656,1705642257870,-502.48,0.00035616,3]
[312116657,1705642257879,-2573.61,0.00035616,3]
[312116658,1705642257888,-500.0,0.00035616,3]
[312116659,1705642257897,-2346.2,0.00035616,3]
[312116660,1705642257906,-500.0,0.00035616,3]
[312116661,1705642257915,-500.0,0.00035616,3]
[312116662,1705642257924,-162.39762665,0.00035616,3]
[312116663,1705642257933,-500.0,0.00035616,3]
[312116664,1705642257943,-2506.63,0.00035616,3]
[312116665,1705642257952,-763.21,0.00035616,3]
[312116666,1705642257962,-500.0,0.00035616,3]
[312116667,1705642257970,-212.372706,0.00035616,120]
[312116668,1705642257979,-500.0,0.0003589,3]
[312116669,1705642257989,-500.0,0.0003589,3]
[312116670,1705642257998,-627.68,0.0003589,3]
[312116671,1705642258007,-500.0,0.0003589,3]
[312116672,1705642258017,-1288.13,0.0003589,3]
[312116673,1705642258027,-968.28,0.0003589,3]
[312116674,1705642258037,-712.94,0.0003589,3]
[312116675,1705642258046,-500.0,0.0003589,3]
[312116676,1705642258055,-882.02,0.0003589,3]
[312116677,1705642258064,-912.0,0.0003589,3]
[312116678,1705642258074,-1012.5,0.0003589,3]
[312116679,1705642258083,-1028.62,0.0003589,3]
[312116680,1705642258092,-8065.62,0.0003589,3]
[312116681,1705642258101,-810.73,0.0003589,3]
[312116682,1705642258110,-1980.19,0.0003589,3]
[312116683,1705642258119,-5460.48,0.0003589,3]
[312116684,1705642258128,-352.68809308,0.0003589,3]
[312116685,1705642258138,-1729.78,0.0003589,3]
[312116686,1705642258147,-500.0,0.0003589,3]
[312116687,1705642258157,-703.4,0.0003589,3]
[312116688,1705642258166,-502.48,0.0003589,3]
[312116689,1705642258176,-2573.61,0.0003589,3]
[312116690,1705642258185,-500.0,0.0003589,3]
[312116691,1705642258194,-2346.2,0.0003589,3]
[312116692,1705642258203,-500.0,0.0003589,3]
[312116693,1705642258260,-500.0,0.0003589,3]
[312116694,1705642258273,-500.0,0.0003589,3]
[312116695,1705642258284,-2506.63,0.0003589,3]
[312116696,1705642258293,-763.21,0.0003589,3]
[312116697,1705642258304,-377.785524,0.0003589,2]
[312116698,1705642258314,-151.0,0.00035956,4]
[312116699,1705642258324,-11000.0,0.00036,20]
[312116700,1705642258333,-152.96638602,0.0003607,7]
[312116701,1705642258342,-500.0,0.00036164,3]
[312116702,1705642258351,-500.0,0.00036164,3]
[312116703,1705642258361,-627.68,0.00036164,3]
[312116704,1705642258369,-500.0,0.00036164,3]
[312116705,1705642258379,-1288.13,0.00036164,3]
[312116706,1705642258389,-968.28,0.00036164,3]
[312116707,1705642258399,-712.94,0.00036164,3]
[312116708,1705642258408,-500.0,0.00036164,3]
[312116709,1705642258417,-882.02,0.00036164,3]
[312116710,1705642258427,-912.0,0.00036164,3]
[312116711,1705642258438,-1012.5,0.00036164,3]
[312116712,1705642258450,-1028.62,0.00036164,3]
[312116713,1705642258459,-8065.62,0.00036164,3]
[312116714,1705642258469,-810.73,0.00036164,3]
[312116715,1705642258480,-1980.19,0.00036164,3]
[312116716,1705642258489,-5460.48,0.00036164,3]
[312116717,1705642258499,-1729.78,0.00036164,3]
[312116718,1705642258508,-500.0,0.00036164,3]
[312116719,1705642258518,-703.4,0.00036164,3]
[312116720,1705642258529,-502.48,0.00036164,3]
[312116721,1705642258538,-2573.61,0.00036164,3]
[312116722,1705642258547,-500.0,0.00036164,3]
[312116723,1705642258556,-2346.2,0.00036164,3]
[312116724,1705642258565,-500.0,0.00036164,3]
[312116725,1705642258574,-500.0,0.00036164,3]
[312116726,1705642258584,-500.0,0.00036164,3]
[312116727,1705642258593,-2506.63,0.00036164,3]
[312116728,1705642258602,-763.21,0.00036164,3]
[312116729,1705642258611,-395.206782,0.00036164,2]
[312116730,1705642258620,-395.206784,0.00036164,2]
[312116731,1705642258629,-1500.0,0.000362,2]
[312116732,1705642258638,-171.0,0.00036247,2]
[312116733,1705642258647,-500.0,0.00036438,3]
[312116734,1705642258656,-500.0,0.00036438,3]
[312116735,1705642258666,-627.68,0.00036438,3]
[312116736,1705642258675,-500.0,0.00036438,3]
[312116737,1705642258684,-1288.13,0.00036438,3]
[312116738,1705642258694,-968.28,0.00036438,3]
[312116739,1705642258703,-712.94,0.00036438,3]
[312116740,1705642258713,-500.0,0.00036438,3]
[312116741,1705642258722,-882.02,0.00036438,3]
[312116742,1705642258731,-1012.5,0.00036438,3]
[312116743,1705642258741,-912.0,0.00036438,3]
[312116744,1705642258750,-1028.62,0.00036438,3]
[312116745,1705642258759,-8065.62,0.00036438,3]
[312116746,1705642258768,-810.73,0.00036438,3]
[312116747,1705642258777,-1980.19,0.00036438,3]
[312116748,1705642258786,-5460.48,0.00036438,3]
[312116749,1705642258795,-1729.78,0.00036438,3]
[312116750,1705642258805,-382.79303238,0.00036438,3]
[312116751,1705642258814,-703.4,0.00036438,3]
[312116752,1705642258823,-502.48,0.00036438,3]
[312116753,1705642258832,-2573.61,0.00036438,3]
[312116754,1705642258842,-500.0,0.00036438,3]
[312116755,1705642258851,-2346.2,0.00036438,3]
[312116756,1705642258860,-500.0,0.00036438,3]
[312116757,1705642258869,-500.0,0.00036438,3]
[312116758,1705642258878,-342.22969418,0.00036438,3]
[312116759,1705642258887,-2506.63,0.00036438,3]
[312116760,1705642258897,-763.21,0.00036438,3]
[312116761,1705642258906,-221.17903886,0.00036459,2]
[312116762,1705642258915,-1000.0,0.00036465,2]
[312116763,1705642258924,-194.56351672,0.00036491,2]
[312116764,1705642258933,-1537.95492913,0.00036498,20]
[312116765,1705642258943,-1000.0,0.000365,2]
[312116766,1705642258952,-1000.0,0.00036575,2]
[312116767,1705642258961,-500.0,0.00036712,3]
[312116768,1705642258970,-500.0,0.00036712,3]
[312116769,1705642258979,-627.68,0.00036712,3]
[312116770,1705642258989,-197.76809168,0.00036712,3]
[312116771,1705642258998,-1288.13,0.00036712,3]
[312116772,1705642259008,-968.28,0.00036712,3]
[312116773,1705642259017,-712.94,0.00036712,3]
[312116774,1705642259027,-500.0,0.00036712,3]
[312116775,1705642259036,-882.02,0.00036712,3]
[312116776,1705642259046,-1012.5,0.00036712,3]
[312116777,1705642259055,-912.0,0.00036712,3]
[312116778,1705642259064,-1028.62,0.00036712,3]
[312116779,1705642259073,-8065.62,0.00036712,3]
[312116780,1705642259083,-810.73,0.00036712,3]
[312116781,1705642259091,-1980.19,0.00036712,3]
[312116782,1705642259101,-5460.48,0.00036712,3]
[312116783,1705642259111,-1729.78,0.00036712,3]
[312116784,1705642259120,-703.4,0.00036712,3]
[312116785,1705642259129,-502.48,0.00036712,3]
[312116786,1705642259138,-2573.61,0.00036712,3]
[312116787,1705642259147,-500.0,0.00036712,3]
[312116788,1705642259156,-2346.2,0.00036712,3]
[312116789,1705642259165,-400.34607611,0.00036712,3]
[312116790,1705642259174,-500.0,0.00036712,3]
[312116791,1705642259183,-2506.63,0.00036712,3]
[312116792,1705642259192,-763.21,0.00036712,3]
[312116793,1705642259252,-377.785524,0.00036712,2]
[312116794,1705642259262,-161.44586858,0.0003682,2]
[312116795,1705642259271,-194.56351672,0.00036836,2]
[312116796,1705642259281,-153.95835482,0.00036959,7]
[312116797,1705642259290,-1000.0,0.00036984,2]
[312116798,1705642259299,-516.59548381,0.00036986,3]
[312116799,1705642259309,-500.0,0.00036986,3]
[312116800,1705642259319,-627.68,0.00036986,3]
[312116801,1705642259330,-1288.13,0.00036986,3]
[312116802,1705642259340,-968.28,0.00036986,3]
[312116803,1705642259349,-712.94,0.00036986,3]
[312116804,1705642259358,-500.0,0.00036986,3]
[312116805,1705642259367,-882.02,0.00036986,3]
[312116806,1705642259377,-1012.5,0.00036986,3]
[312116807,1705642259386,-912.0,0.00036986,3]
[312116808,1705642259395,-1028.62,0.00036986,3]
[312116809,1705642259404,-8065.62,0.00036986,3]
[312116810,1705642259413,-810.73,0.00036986,3]
[312116811,1705642259422,-1980.19,0.00036986,3]
[312116812,1705642259431,-5460.48,0.00036986,3]
[312116813,1705642259444,-574.48767611,0.00036986,3]
[312116814,1705642259565,-1155.29232389,0.00036986,3]
[312116815,1705642259575,-703.4,0.00036986,3]
[312116816,1705642259584,-502.48,0.00036986,3]
[312116817,1705642259594,-712.65972537,0.00036986,3]
[312116818,1705642259610,-500.0,0.0003589,3]
[312116819,1705642259619,-1860.95027463,0.00036986,3]
[312116820,1705642259628,-500.0,0.00036986,3]
[312116821,1705642259637,-2346.2,0.00036986,3]
[312116822,1705642259646,-500.0,0.00036986,3]
[312116823,1705642259655,-2506.63,0.00036986,3]
[312116824,1705642259664,-763.21,0.00036986,3]
[312116825,1705642259673,-10312.38464384,0.0003718,2]
[312116826,1705642260284,-2456.45,0.0002999,3]
[312116827,1705642260294,-500.0,0.00036164,3]
[312116828,1705642260303,-500.0,0.00036438,3]
[312116829,1705642260312,-500.0,0.00036712,3]
[312116830,1705642260321,-200.0,0.00036859,15]
[312116831,1705642260332,-200.0,0.00036859,15]
[312116832,1705642260342,-368.0,0.00036859,15]
[312116833,1705642260351,-3.80362106,0.00036986,3]
[312116834,1705642260362,-183.37263762,0.00036986,3]
[312116835,1705642260372,-5142.01896487,0.0003718,2]
[312116836,1705642260383,-5286.23071055,0.0003718,2]
[312116837,1705642260431,-1200.0,0.0003,4]
[312116838,1705642260443,-201.10292525,0.0003,4]
[312116839,1705642260452,-8749.81347191,0.00036846,7]
[312116840,1705642261061,-11052.32972011,0.00036846,7]
[312116841,1705642261073,-4727.4817822,0.00036846,7]
[312116867,1705642328488,-214.7973618,0.000275,2]
[312116868,1705642328511,-3971.58661394,0.00029994,7]
[312116869,1705642328534,-6865.61602426,0.00029995,2]
[312116898,1705642674593,-8628.82,0.00025328,3]
[312116900,1705642698593,-451.1727057,0.00021116,2]
[312116903,1705642712226,-1020.19592133,0.00021116,2]
[312116904,1705642712249,-1976.1398725,0.00024333,7]
[312116938,1705642857603,-230.71907883,0.00022327,2]
[312116939,1705642857624,-178.65716453,0.00022328,2]
[312116940,1705642857647,-1602.24051039,0.00022328,2]
[312116941,1705642857669,-2813.43161407,0.00022328,2]
[312116942,1705642857690,-8757.15684933,0.00022329,2]
[312116943,1705642857711,-294.70821043,0.00022329,2]
[312116944,1705642857731,-1197.20181474,0.00022329,2]
[312116945,1705642857751,-3769.88475768,0.0002233,2]
[312116949,1705642929447,-21675.6082244,0.00022319,2]
[312116950,1705642929469,-4096.69,0.0002232,3]
[312116951,1705642929489,-294.70821043,0.00022321,2]
[312116952,1705642929509,-2996.33579383,0.00022321,2]
[312116953,1705642929529,-170.79924496,0.00022322,2]
[312116954,1705642929549,-1589.24944099,0.00022322,2]